Cogmind - Beta 13 @@@ ROGUE MODE // 2024.07.03 @ 17:57:52 Player: Tanderae Result: Destroyed by G-34 Mercenary with Small Laser Performance ------------- Evolutions (1) 500 Regions Visited (2) 400 Robots Destroyed (29) 145 Value Destroyed (855) 855 Prototype IDs (0) 0 Alien Tech Used (0) 0 Bonus (0) 0 TOTAL SCORE: 1900 Bonus ------- None Cogmind --------- Core Integrity 0/400 Matter 300/300 Energy 265/265 System Corruption 0% Temperature Cool (6) Movement Core (500) Ox9 Location -9/Materials Parts ------- > --- POWER (1) -------- Reinforced Ion Engine > --- PROPULSION (4) --- (None) > --- UTILITY (2) ------ Large Storage Unit Targeting Computer > --- WEAPON (2) ------- (None) > --- INVENTORY (15) --- Ion Engine Aluminum Leg Aluminum Leg Improved Heat Sink Improved Heat Sink Small Storage Unit Medium Matter Pod (100) Medium Matter Pod (100) High-capacity Matter Pod (200) Core Shielding Shield Generator Small Laser Particle Gun Peak State ------------ > --- POWER ------------ Reinforced Ion Engine > --- PROPULSION ------- Aluminum Leg Aluminum Leg Aluminum Leg Aluminum Leg > --- UTILITY ---------- Large Storage Unit Machine Analyzer > --- WEAPON ----------- Small Laser Small Laser > --- INVENTORY -------- Ion Engine Ion Engine Aluminum Leg Aluminum Leg Improved Heat Sink Improved Heat Sink Small Storage Unit Medium Matter Pod Medium Matter Pod High-capacity Matter Pod Targeting Computer Core Shielding Shield Generator Small Laser Particle Gun [Rating: 14] Favorites ----------- Power Ion Engine Engine Ion Engine Propulsion Light Treads Treads Light Treads Leg Aluminum Leg Utility Small Storage Unit Storage Small Storage Unit Processor Machine Analyzer Weapon Light Assault Rifle Energy Gun Medium Laser Ballistic Gun Light Assault Rifle Build | -11 -10 -9 ------- Run | Yrd Mat Mat Slots Evolved 2 | . . 2 Power . | . . . Propulsion 2 | . . 2 Utility . | . . . Weapon . | . . . Parts Attached 29 | 8 9 12 Power 5 | 1 1 3 Engine 5 | 1 1 3 Core . | . . . Reactor . | . . . Propulsion 9 | 3 2 4 Treads 3 | 1 2 . Leg 6 | 2 . 4 Wheel . | . . . Hover . | . . . Flight . | . . . Utility 5 | 2 2 1 Device . | . . . Storage 3 | 2 1 . Processor 2 | . 1 1 Hackware . | . . . Protection . | . . . Artifact . | . . . Weapon 10 | 2 4 4 Energy Gun 5 | . 1 4 Energy Cannon . | . . . Ballistic Gun 5 | 2 3 . Ballistic Cannon . | . . . Launcher . | . . . Special Weapon . | . . . Impact Weapon . | . . . Slashing Weapon . | . . . Piercing Weapon . | . . . Special Melee Weapon . | . . . Unidentified Prototypes . | . . . Parts Lost 17 | . 4 13 Power 2 | . 1 1 Propulsion 7 | . 1 6 Utility . | . . . Weapon 8 | . 2 6 Highest Loss Streak 6 | . 3 6 To Critical Strikes . | . . . Average Slot Usage (%) 91 | . 98 71 Engine 12 | . 13 8 Treads 17 | . 22 5 Leg 8 | . 5 16 Storage 17 | . 19 11 Processor 9 | . 8 11 Energy Gun 12 | . 11 16 Ballistic Gun 12 | . 16 2 Naked Turns . | . . . Heaviest Build 32 | 18 28 32 Greatest Support 40 | 20 40 40 Greatest Overweight (x) 9 | 1 1 9 Average Overweight (x) . | . . 1 Largest Inventory Capacity 15 | 8 15 15 Average Capacity 9 | 6 8 15 Most Carried 15 | 5 9 15 Average Carried 7 | 3 6 10 Final Capacity 15 | 8 15 15 Final Carried 13 | 5 9 13 Class Distribution -------------------- 52% | Mutant 47% | Scavenger-Mutant Dominant Class ---------------- Scavenger-Mutant | -10/Materials Mutant | -9/Materials Resources | -11 -10 -9 ----------- Run | Yrd Mat Mat Matter Collected 936 | 262 429 245 Remotely . | . . . Salvage Created 1102 | 116 439 547 Parts 62 | 6 31 25 Haulers Intercepted . | . . . Recyclers Shooed 2 | . 1 1 Parts Field Recycled . | . . . Retrieved Matter . | . . . Parts Self-Destructed . | . . . Prevented . | . . . Kills | -11 -10 -9 ------- Run | Yrd Mat Mat Combat Hostiles Destroyed 24 | . 12 12 Melee 1 | . 1 . Guns 23 | . 11 12 Classes Destroyed 8 | 2 4 2 Worker 1 | . 1 . Tunneler 1 | 1 . . Recycler 1 | 1 . . Watcher 2 | . 2 . Swarmer 3 | . 3 . Grunt 19 | . 9 10 Brawler 1 | . . 1 Sentry 1 | . . 1 Best Kill Streak 4 | 2 4 3 Combat Bots Only 3 | . 3 3 Max Kills in Single Turn 1 | 1 1 1 Gunslinging . | . . . Exploded . | . . . Melee 1 | . 1 . Uniques/NPCs Destroyed . | . . . Combat | -11 -10 -9 -------- Run | Yrd Mat Mat Hostile Shots Fired 264 | . 117 147 Missed 64 | . 33 31 Damage Taken 2515 | . 986 1529 Core 563 | . 157 406 Absorbed by Shields . | . . . Core Remaining (%) 68 | 100 37 . Volleys Fired 144 | 8 66 70 Largest 2 | 1 2 2 Hottest 90 | 20 70 90 Shots Fired 225 | 8 119 98 Gun 225 | 8 119 98 Cannon . | . . . Launcher . | . . . Special . | . . . Kinetic 104 | 8 90 6 Thermal 121 | . 29 92 Explosive . | . . . Electromagnetic . | . . . Robot Hit Streak 9 | 7 8 9 Robot Miss Streak 7 | 1 7 3 Penetration Max . | . . . Secondary Targets 3 | . 2 1 Max Gunslinging Chain 1 | . 1 1 Shots Hit Robots 138 | 7 65 66 Core Hits 63 | 5 30 28 Critical Kills . | . . . Critical Parts Destroyed . | . . . Critical Strikes 6 | . 3 3 Burn 6 | . 3 3 Melee Attacks . | . . . Impact . | . . . Slashing . | . . . Piercing . | . . . Sneak Attacks . | . . . Combat Hostiles . | . . . Follow-up Attacks . | . . . Damage Inflicted 1563 | 55 732 776 Guns 1555 | 52 727 776 Cannons . | . . . Explosions . | . . . Melee . | . . . Ramming 8 | 3 5 . Kinetic 655 | 52 566 37 Thermal 900 | . 161 739 Explosive . | . . . Electromagnetic . | . . . Impact . | . . . Slashing . | . . . Piercing . | . . . Highest Corruption . | . . . Average Corruption . | . . . Corruption Purged . | . . . Corruption Blocked . | . . . Overload Shots . | . . . Overflow Damage . | . . . Projectiles . | . . . Explosions . | . . . Melee . | . . . Knockbacks . | . . . Impact . | . . . Kinetic . | . . . Secondary . | . . . Self-Inflicted Damage . | . . . Shots . | . . . Rammed 2 | 1 1 . Targets Rammed 3 | 1 2 . Kicked . | . . . Crushed 1 | . 1 . Highest Temperature 242 | . 200 242 Average Temperature 68 | . 42 87 Received Heat Transfer 1146 | . 468 678 Effects 5 | . . 5 Interference 5 | . . 5 Siege Activations . | . . . Robots Corrupted . | . . . Combat Hostiles . | . . . Parts Fried . | . . . Impact Corruptions . | . . . Robots Melted . | . . . Combat Hostiles . | . . . Parts Melted 4 | . 1 3 Heat Transferred 2741 | . 703 2038 Parts Sabotaged . | . . . Parts Stolen . | . . . Parts Stripped . | . . . Power Chain Reactions . | . . . Alert | -11 -10 -9 ------- Run | Yrd Mat Mat Peak Influence 280 | 10 212 280 Initial 35 | . 6 35 Average 85 | 7 65 160 Maximum Alert Level 1 | . 1 1 Low Security (%) 86 | 100 93 66 Level 1 13 | . 6 33 Level 2 . | . . . Level 3 . | . . . Level 4 . | . . . Level 5 . | . . . High Security . | . . . Max Security . | . . . Squads Dispatched 2 | . 1 1 Investigation 1 | . 1 . Extermination . | . . . Reinforcement 1 | . . 1 Assault . | . . . Garrison . | . . . Intercept . | . . . Searches Triggered . | . . . Construction Impeded . | . . . Haulers Reinforced . | . . . Active Scanning Responses . | . . . Cargo Convoy Interrupts . | . . . Stealth | -11 -10 -9 --------- Run | Yrd Mat Mat Distress Signals 3 | . 2 1 Communications Jammed . | . . . Distress Signals . | . . . Times Spotted 40 | . 20 20 Peak Tracking Total 5 | . 5 5 Tactical Retreats . | . . . Traps | -11 -10 -9 ------- Run | Yrd Mat Mat Traps Triggered . | . . . Indirectly . | . . . Trap Hack Attempts . | . . . Triggered . | . . . Disarmed . | . . . Reprogrammed . | . . . Reused . | . . . Traps Extracted . | . . . Installed . | . . . Triggered . | . . . Machines | -11 -10 -9 ---------- Run | Yrd Mat Mat Machines Disabled . | . . . Max in Single Turn . | . . . Machines Repaired . | . . . Machines Dismantled . | . . . Machines Sabotaged . | . . . Overloaded Fab Kills . | . . . Hacking | -11 -10 -9 --------- Run | Yrd Mat Mat Machines Accessed 4 | . 4 . Terminals 3 | . 3 . Fabricators . | . . . Repair Stations . | . . . Recycling Units 1 | . 1 . Scanalyzers . | . . . Garrison Access . | . . . Total Hacks 10 | . 10 . Successful 9 | . 9 . Failed 1 | . 1 . Catastrophic . | . . . Database Lockouts . | . . . Manual . | . . . Terminals 5 | . 5 . Fabricators . | . . . Repair Stations . | . . . Recycling Units 5 | . 5 . Scanalyzers . | . . . Garrison Access . | . . . Terminal Hacks 4 | . 4 . Record 4 | . 4 . Fabricator Hacks . | . . . Repair Station Hacks . | . . . Recycling Unit Hacks 5 | . 5 . Recycle Component 2 | . 2 . Process 1 | . 1 . Retrieve Matter 1 | . 1 . Retrieve Components 1 | . 1 . Scanalyzer . | . . . Garrison Access Hacks . | . . . Unauthorized Hacks . | . . . Terminals . | . . . Fabricators . | . . . Repair Stations . | . . . Recycling Units . | . . . Scanalyzers . | . . . Garrison Access . | . . . Data Cores Recovered . | . . . Used . | . . . Hacking Detections 3 | . 3 . Full Trace Events 1 | . 1 . Feedback Events . | . . . Feedback Blocked . | . . . Robot Schematics Acquired . | . . . Robots Built . | . . . Authchips . | . . . Time . | . . . Total Robot Build Rating . | . . . Part Schematics Acquired . | . . . Parts Built . | . . . Authchips . | . . . Time . | . . . Total Part Build Rating . | . . . Parts Repaired . | . . . Time . | . . . Parts Recycled 2 | . 2 . Recycled Matter 93 | . 93 . Retrieved Matter 93 | . 93 . Retrieved Components . | . . . Parts Scanalyzed . | . . . Part Schematics Acquired . | . . . Parts Damaged . | . . . Bothacking | -11 -10 -9 ------------ Run | Yrd Mat Mat Used RIF Installer . | . . . Robots Hacked . | . . . Non-combat . | . . . Combat . | . . . Robot Hacks Applied . | . . . Relay Couplers Released . | . . . Fabnet Peak Effective % . | . . . Robots Rewired . | . . . Allies Hacked . | . . . Hacks Repelled . | . . . Allies | -11 -10 -9 -------- Run | Yrd Mat Mat Total Allies . | . . . Largest Group . | . . . Highest-Rated Group . | . . . Highest-Rated Ally . | . . . Total Orders . | . . . Ally Attacks . | . . . Total Damage . | . . . Kills . | . . . Allies Corrupted . | . . . Allies Melted . | . . . Intel | -11 -10 -9 ------- Run | Yrd Mat Mat Robot Analysis Total . | . . . Derelict Logs Recovered . | . . . Drone Launches . | . . . Drone Recoveries . | . . . Exploration | -11 -10 -9 ------------- Run | Yrd Mat Mat Turns Passed 1468 | 116 973 379 Spaces Moved 637 | 59 487 91 Core 22 | 6 . 16 Treads 453 | 8 411 34 Legs 162 | 45 76 41 Wheels . | . . . Hover . | . . . Flight . | . . . Fastest Speed 50 | 50 120 120 Average Speed 157 | 122 153 199 Slowest Speed 500 | 160 190 500 Overloaded Moves . | . . . Propulsion Burnouts . | . . . Robots Hopped . | . . . Cave-ins Triggered . | . . . Exploration Rate (%) 24 | 3 62 7 Regions Visited 2 Branch Regions . Pre-discovered Areas . | . . . Known Exits Taken . | . . . Unknown Exits Taken 2 | 1 1 . Scrap Searched . | . . . Spaces Dug . | . . . Terrain Destroyed . | . . . Melee . | . . . Projectile . | . . . AOE . | . . . Terrain Rammed . | . . . Walls Destroyed . | . . . Machines Disabled . | . . . Actions | -11 -10 -9 --------- Run | Yrd Mat Mat Total 885 | 92 601 192 Wait 41 | 12 18 11 Move 635 | 58 486 91 Hop . | . . . Pick Up 24 | 4 13 7 Fast Attach 15 | 8 1 6 Attach 7 | . 4 3 Detach 2 | 1 1 . Swap 7 | . 4 3 Drop 7 | . 6 1 Fire 144 | 8 66 70 Melee . | . . . Ram . | . . . Kick . | . . . Crush 3 | 1 2 . Escape Stasis . | . . . Rewire . | . . . Trap . | . . . Miscellaneous . | . . . Route ------- -11/Scrapyard -10/Materials (discovered 2 exits: [*Mat] / [*Min]) -9/Materials (discovered 1 exit: [*Sto]) History --------- Turn | Location | Event 20 | -11/Scrapyard | Discovered new exit (range 15) 117 | -11/Scrapyard | Entered Materials 243 | -10/Materials | Discovered new exit (range 9) 304 | -10/Materials | Build established: Mutant 334 | -10/Materials | Lost 3 parts (1n2w) 442 | -10/Materials | Discovered new exit (range 16) 813 | -10/Materials | Build established: Scavenger-Mutant 955 | -10/Materials | Core integrity fell below 50% 1090 | -10/Materials | Entered another Materials area 1090 | -9/Materials | Evolved 2 slots: Propulsion x2 1215 | -9/Materials | Lost 3 parts (2n1w) 1278 | -9/Materials | Lost 3 parts (1p2w) 1325 | -9/Materials | Core integrity fell below 50% 1406 | -9/Materials | Discovered new exit (range 15) 1451 | -9/Materials | Core integrity fell below 20% 1469 | -9/Materials | Destroyed by G-34 Mercenary with Small Laser Last Messages --------------- Acquired Imp. Heat Sink. EXIT=FOUND Dropped Ion Engine. Discarded Machine Analyzer. Acquired 10 matter. Aluminum Leg destroyed. Sml. Laser destroyed. G-34 Mercenary destroyed. K-01 Serf collects debris. Aluminum Leg destroyed. K-01 Serf collects debris. Sml. Laser destroyed. K-01 Serf collects debris. Aluminum Leg destroyed. K-01 Serf collects debris. R-06 Scavenger collects Sml. Laser. K-01 Serf collects debris. R-06 Scavenger collects Aluminum Leg. K-01 Serf collects debris. Critical hit (Burn: +37). Map ----- +----------------------------------------------------+ | ?????????????????????????????????????????????????? | | ?????????????????????????????????????????????????? | | ??????????????????????????????????????"""????????? | | ?????????????????????????????????????"""""???????? | | ?????????????????????????????????????"""""???????? | | ?????????????????????????????????????"""""???????? | | ??????????????????????????????????????"""????????? | | ??????????????????????????? ???????????????????? | | ??????????????????????????? ???????????????????? | | ??????????????????????????? ???????????????????? | | ?????????????????????????? #?????##???????????? | | ??????????????????????????# ??? ???????????? | | ??????????????????????????# ?? ????????????? | | ?????????????????????? ???# """ ?????????????? | | ???????????????????